[Event "Lilla Elite Hotels Open 2019"]
[Site "Vaxjo"]
[Date "2019.02.09"]
[Round "5.3"]
[White "Petersson, David"]
[Black "Muntean, Adrian"]
[Result "1/2-1/2"]
[ECO "D00"]
[WhiteElo "1465"]
[BlackElo "1402"]
[Annotator "NA RC"]
[PlyCount "50"]
[EventDate "2019.02.08"]
[EventType "swiss"]
[EventCountry "SWE"]
[SourceTitle "playchess.com"]
[Source "ChessBase"]
[SourceQuality "1"]
[TimeControl "5400+30"]

1. d4 {[%emt 0:00:00]} d5 {[%emt 0:00:00]} 2. Bf4 {[%emt 0:00:00]} Nf6 {[%emt 0:00:04]} 3. e3 {[%emt 0:00:00]} e6 {[%emt 0:01:08]} 4. c3 {[%emt 0:00:17]} Be7 {[%emt 0:00:38]} 5. Nd2 {[%emt 0:00:43]} c5 {[%emt 0:01:45]} 6. Bd3 {[%emt 0:01:39]} c4 {[%emt 0:01:23]} 7. Bc2 {[%emt 0:00:28]} b5 {[%emt 0:00:19]} 8. a3 {[%emt 0:01:44]} Bb7 {[%emt 0:01:58]} 9. Ngf3 {[%emt 0:01:10]} Nh5 {[%emt 0:00:40]} 10. Bg3 {[%emt 0:00:49]} Nxg3 {[%emt 0:00:15]} 11. hxg3 {[%emt 0:00:09]} h6 {[%emt 0:00:29]} 12. Ne5 {[%emt 0:00:32]} Nd7 {[%emt 0:00:46]} 13. Ndf3 {[%emt 0:01:10]} Nf6 {[%emt 0:06:18]} 14. Qb1 {[%emt 0:06:41]} Ne4 {[%emt 0:00:52]} 15. Nd2 {[%emt 0:03:47]} Nxd2 {[%emt 0:00:59]} 16. Kxd2 {[%emt 0:00:10]} Qc7 {[%emt 0:00:54]} 17. f4 {[%emt 0:14:31]} Bd6 {[%emt 0:02:34]} 18. Nf3 {[%emt 0:01:23]} f5 {[%emt 0:01:32]} 19. Qg1 {[%emt 0:06:44]} a5 {[%emt 0:00:39]} 20. Qh2 {[%emt 0:02:58]} O-O-O {[%emt 0:00:58]} 21. Rhb1 {[%emt 0:04:47]} a4 {[%emt 0:00:33]} 22. Qh5 {[%emt 0:05:52]} Bc6 {[%emt 0:01:16]} 23. g4 {[%emt 0:02:22]} Be8 {[%emt 0:01:16]} 24. Qh3 {[%emt 0:01:19]} g6 {[%emt 0:01:31]} 25. g5 {[%emt 0:02:55]} h5 1/2-1/2

[Event "Lilla Elite Hotels Open 2019"]
[Site "Vaxjo"]
[Date "2019.02.09"]
[Round "6.1"]
[White "Seo, Jung Hyun"]
[Black "Wennerlund, Elias"]
[Result "1/2-1/2"]
[ECO "B04"]
[WhiteElo "1534"]
[BlackElo "1494"]
[Annotator "NA"]
[PlyCount "75"]
[EventDate "2019.02.08"]
[EventType "swiss"]
[EventCountry "SWE"]
[SourceTitle "playchess.com"]
[Source "ChessBase"]
[SourceQuality "1"]
[TimeControl "5400+30"]

1. e4 {[%emt 0:00:00]} Nf6 {[%emt 0:00:00]} 2. e5 {[%emt 0:00:00]} Nd5 {[%emt 0:00:00]} 3. d4 {[%emt 0:00:00]} d6 {[%emt 0:00:03]} 4. Nf3 {[%emt 0:00:00]} dxe5 {[%emt 0:00:06]} 5. Nxe5 {[%emt 0:00:00]} c6 {[%emt 0:00:06]} 6. Be2 {[%emt 0:00:00]} Bf5 {[%emt 0:01:41]} 7. O-O {[%emt 0:03:23]} Nd7 {[%emt 0:01:54]} 8. Nf3 {[%emt 0:02:22]} e6 {[%emt 0:06:40]} 9. a3 {[%emt 0:05:25]} Bd6 {[%emt 0:02:36]} 10. c4 {[%emt 0:02:46]} Nf4 {[%emt 0:02:57]} 11. Nc3 {[%emt 0:01:43]} Qf6 {[%emt 0:03:38]} 12. Bxf4 {[%emt 0:11:28]} Bxf4 {[%emt 0:00:08]} 13. Bd3 {[%emt 0:00:09]} Bg4 {[%emt 0:05:09]} 14. Ne4 {[%emt 0:00:24]} Qh6 {[%emt 0:00:24]} 15. g3 {[%emt 0:11:14]} Qh5 {[%emt 0:12:59]} 16. Be2 {[%emt 0:02:37]} Bc7 {[%emt 0:08:06]} 17. Re1 {[%emt 0:02:21]} Qf5 {[%emt 0:09:14]} 18. Nfd2 {[%emt 0:04:48]} h5 {[%emt 0:03:12]} 19. Nc3 {[%emt 0:09:03]} Nf6 {[%emt 0:06:07]} 20. Qb1 {[%emt 0:04:23]} Qg5 {[%emt 0:11:06]} 21. Nde4 {[%emt 0:04:13]} Qh6 {[%emt 0:02:07]} 22. h4 {[%emt 0:05:58]} Bf5 {[%emt 0:07:19]} 23. Bd3 {[%emt 0:01:09]} O-O-O {[%emt 0:01:53]} 24. Nxf6 {[%emt 0:03:43]} Qxf6 {[%emt 0:00:08]} 25. Bxf5 {[%emt 0:00:24]} exf5 {[%emt 0:00:06]} 26. d5 {[%emt 0:00:15]} f4 {[%emt 0:01:27]} 27. Ne4 {[%emt 0:02:37]} Qd4 {[%emt 0:00:42]} 28. d6 {[%emt 0:01:14]} Bxd6 {[%emt 0:03:35]} 29. Nxd6+ {[%emt 0:00:08]} Qxd6 {[%emt 0:00:23]} 30. Qf5+ {[%emt 0:00:12]} Kb8 {[%emt 0:01:32]} 31. Rad1 {[%emt 0:01:31]} Qc7 {[%emt 0:00:51]} 32. Qxf4 {[%emt 0:00:54]} Qxf4 {[%emt 0:00:37]} 33. gxf4 {[%emt 0:00:04]} Rxd1 {[%emt 0:00:58]} 34. Rxd1 {[%emt 0:00:03]} Rh6 {[%emt 0:00:17]} 35. Rd7 {[%emt 0:00:16]} Rf6 {[%emt 0:00:16]} 36. Rd4 {[%emt 0:00:27]} Kc7 {[%emt 0:00:19]} 37. Kg2 {[%emt 0:00:05]} g6 {[%emt 0:01:11]} 38. Kf3 {[%emt 0:00:10]} 1/2-1/2

[Event "Lilla Elite Hotels Open 2019"]
[Site "Vaxjo"]
[Date "2019.02.09"]
[Round "6.2"]
[White "Nabbing, Oscar"]
[Black "Morell, Adam"]
[Result "1-0"]
[ECO "B23"]
[WhiteElo "1456"]
[BlackElo "1492"]
[Annotator "NA"]
[PlyCount "85"]
[EventDate "2019.02.08"]
[EventType "swiss"]
[EventCountry "SWE"]
[SourceTitle "playchess.com"]
[Source "ChessBase"]
[SourceQuality "1"]
[TimeControl "5400+30"]

1. e4 {[%emt 0:00:00]} c5 {[%emt 0:00:00]} 2. Nc3 {[%emt 0:00:31]} Nc6 {[%emt 0:00:04]} 3. f4 {[%emt 0:00:49]} g6 {[%emt 0:00:20]} 4. Nf3 {[%emt 0:00:50]} Bg7 {[%emt 0:00:23]} 5. Bc4 {[%emt 0:02:18]} e6 {[%emt 0:00:32]} 6. O-O {[%emt 0:00:19]} Nge7 {[%emt 0:00:07]} 7. f5 {[%emt 0:02:52]} O-O {[%emt 0:04:32]} 8. fxe6 {[%emt 0:06:51]} fxe6 {[%emt 0:00:31]} 9. d3 {[%emt 0:00:18]} d5 {[%emt 0:00:24]} 10. Bb3 {[%emt 0:00:55]} a6 {[%emt 0:02:51]} 11. Bg5 {[%emt 0:03:46]} Qd7 {[%emt 0:05:24]} 12. a4 {[%emt 0:01:25]} b6 {[%emt 0:03:39]} 13. Qe1 {[%emt 0:07:53]} Bb7 {[%emt 0:04:32]} 14. Qh4 {[%emt 0:02:28]} Rae8 {[%emt 0:12:17]} 15. Bh6 {[%emt 0:03:10]} Nd4 {[%emt 0:05:25]} 16. Ng5 {[%emt 0:06:44]} Nec6 {[%emt 0:05:45]} 17. Bxg7 {[%emt 0:03:26]} Qxg7 {[%emt 0:00:42]} 18. Qh3 {[%emt 0:00:20]} Bc8 {[%emt 0:01:48]} 19. Nf3 {[%emt 0:02:14]} Nxb3 {[%emt 0:01:29]} 20. cxb3 {[%emt 0:00:52]} Nd4 {[%emt 0:06:29]} 21. Nxd4 {[%emt 0:01:53]} cxd4 {[%emt 0:03:20]} 22. Ne2 {[%emt 0:01:21]} dxe4 {[%emt 0:00:56]} 23. dxe4 {[%emt 0:00:31]} d3 {[%emt 0:03:17]} 24. Qxd3 {[%emt 0:01:22]} Qxb2 {[%emt 0:01:52]} 25. Rab1 {[%emt 0:01:56]} Qe5 {[%emt 0:06:50]} 26. Ng3 {[%emt 0:04:10]} Rd8 {[%emt 0:02:23]} 27. Rxf8+ {[%emt 0:02:05]} Rxf8 {[%emt 0:00:22]} 28. Rd1 {[%emt 0:09:59]} Qc7 {[%emt 0:02:30]} 29. Qd6 {[%emt 0:03:42]} Qb7 {[%emt 0:03:45]} 30. Rc1 {[%emt 0:04:04]} Qf7 {[%emt 0:05:20]} 31. Rf1 {[%emt 0:02:15]} Qg7 {[%emt 0:00:59]} 32. Rxf8+ {[%emt 0:01:02]} Qxf8 {[%emt 0:00:12]} 33. Qxb6 {[%emt 0:00:11]} Qe8 {[%emt 0:03:15]} 34. Qc7 {[%emt 0:03:55]} Bd7 {[%emt 0:02:21]} 35. Qc4 {[%emt 0:00:54]} Bc8 {[%emt 0:00:39]} 36. e5 {[%emt 0:01:09]} Qd7 {[%emt 0:01:12]} 37. Ne4 {[%emt 0:00:21]} Kg7 {[%emt 0:05:26]} 38. Nd6 {[%emt 0:01:20]} Qa7+ {[%emt 0:00:46]} 39. Kf1 {[%emt 0:01:12]} Bd7 {[%emt 0:00:24]} 40. Qf4 {[%emt 0:01:18]} Bc6 {[%emt 0:00:56]} 41. Qf6+ {[%emt 0:01:15]} Kh6 {[%emt 0:01:31]} 42. Nf7+ {[%emt 0:00:08]} Kh5 {[%emt 0:00:20]} 43. Qg5# {[%emt 0:00:27]} 1-0

[Event "Lilla Elite Hotels Open 2019"]
[Site "Vaxjo"]
[Date "2019.02.09"]
[Round "6.3"]
[White "Fridman, Arvid"]
[Black "Alfredsson, Daniel"]
[Result "0-1"]
[ECO "A43"]
[WhiteElo "1219"]
[BlackElo "1455"]
[Annotator "NA"]
[PlyCount "98"]
[EventDate "2019.02.08"]
[EventType "swiss"]
[EventCountry "SWE"]
[SourceTitle "playchess.com"]
[Source "ChessBase"]
[SourceQuality "1"]
[TimeControl "5400+30"]

1. d4 {[%emt 0:00:00]} c5 {[%emt 0:00:00]} 2. dxc5 {[%emt 0:00:14]} Qa5+ {[%emt 0:00:38]} 3. Nc3 {[%emt 0:00:44]} e6 {[%emt 0:00:34]} 4. Nf3 {[%emt 0:00:50]} Bxc5 {[%emt 0:00:40]} 5. e4 {[%emt 0:00:25]} Nf6 {[%emt 0:02:53]} 6. Bd3 {[%emt 0:01:44]} d5 {[%emt 0:01:34]} 7. e5 {[%emt 0:00:28]} Nfd7 {[%emt 0:01:06]} 8. O-O {[%emt 0:01:03]} Nc6 {[%emt 0:00:44]} 9. Re1 {[%emt 0:00:56]} Nd4 {[%emt 0:03:17]} 10. Bd2 {[%emt 0:01:50]} Nxf3+ {[%emt 0:02:45]} 11. Qxf3 {[%emt 0:00:35]} O-O {[%emt 0:03:29]} 12. Qg3 {[%emt 0:04:41]} Rd8 {[%emt 0:02:15]} 13. Ne4 {[%emt 0:00:45]} Bb4 {[%emt 0:02:07]} 14. Bxb4 {[%emt 0:01:49]} Qxb4 {[%emt 0:00:17]} 15. Qg5 {[%emt 0:00:56]} Qf8 {[%emt 0:02:39]} 16. Nd6 {[%emt 0:01:03]} Nxe5 {[%emt 0:06:03]} 17. Nxc8 {[%emt 0:02:03]} Nc6 {[%emt 0:03:44]} 18. Nxa7 {[%emt 0:01:20]} Rxa7 {[%emt 0:01:29]} 19. Re3 {[%emt 0:13:08]} Qe7 {[%emt 0:02:22]} 20. Qxe7 {[%emt 0:00:48]} Nxe7 {[%emt 0:00:22]} 21. h3 {[%emt 0:00:58]} Nc6 {[%emt 0:01:22]} 22. Ree1 {[%emt 0:05:44]} Nb4 {[%emt 0:02:05]} 23. a3 {[%emt 0:01:00]} Nxd3 {[%emt 0:00:52]} 24. cxd3 {[%emt 0:00:01]} Rc8 {[%emt 0:01:40]} 25. Rec1 {[%emt 0:00:34]} Raa8 {[%emt 0:00:06]} 26. f4 {[%emt 0:00:14]} Kf8 {[%emt 0:00:14]} 27. Kf2 {[%emt 0:00:10]} Ke7 {[%emt 0:00:54]} 28. Ke3 {[%emt 0:00:44]} Kd7 {[%emt 0:00:28]} 29. d4 {[%emt 0:01:35]} Rc4 {[%emt 0:00:41]} 30. Kd3 {[%emt 0:02:31]} Raa4 {[%emt 0:01:35]} 31. Rxc4 {[%emt 0:00:38]} dxc4+ {[%emt 0:00:33]} 32. Kc3 {[%emt 0:03:11]} Kd6 {[%emt 0:00:36]} 33. g4 {[%emt 0:00:52]} Kd5 {[%emt 0:00:57]} 34. Re1 {[%emt 0:00:31]} f6 {[%emt 0:00:55]} 35. h4 {[%emt 0:00:32]} Ra6 {[%emt 0:03:48]} 36. h5 {[%emt 0:03:15]} Rb6 {[%emt 0:02:30]} 37. g5 {[%emt 0:00:34]} Rb3+ {[%emt 0:02:18]} 38. Kc2 {[%emt 0:00:11]} f5 {[%emt 0:01:08]} 39. Re5+ {[%emt 0:01:01]} Kd6 {[%emt 0:00:52]} 40. d5 {[%emt 0:00:33]} exd5 {[%emt 0:03:51]} 41. Rxf5 {[%emt 0:00:30]} Re3 {[%emt 0:00:15]} 42. Rf7 {[%emt 0:00:29]} Re7 {[%emt 0:00:22]} 43. Rxe7 {[%emt 0:01:41]} Kxe7 {[%emt 0:00:11]} 44. f5 {[%emt 0:00:14]} Kd6 {[%emt 0:00:10]} 45. f6 {[%emt 0:02:48]} Ke6 {[%emt 0:04:22]} 46. g6 {[%emt 0:01:09]} hxg6 {[%emt 0:00:31]} 47. fxg7 {[%emt 0:02:17]} Kf7 {[%emt 0:00:10]} 48. h6 {[%emt 0:00:02]} g5 {[%emt 0:00:53]} 49. Kd2 {[%emt 0:00:44]} d4 0-1

[Event "Lilla Elite Hotels Open 2019"]
[Site "Vaxjo"]
[Date "2019.02.09"]
[Round "6.4"]
[White "Johansson, Jan"]
[Black "Wetterling, Ywonne"]
[Result "1/2-1/2"]
[ECO "D00"]
[WhiteElo "2344"]
[BlackElo "1430"]
[Annotator "NA"]
[PlyCount "88"]
[EventDate "2019.02.08"]
[EventType "swiss"]
[EventCountry "SWE"]
[SourceTitle "playchess.com"]
[Source "ChessBase"]
[SourceQuality "1"]
[TimeControl "5400+30"]

1. d4 {[%emt 0:00:00]} d5 {[%emt 0:00:00]} 2. Bf4 {[%emt 0:00:00]} Nf6 {[%emt 0:01:10]} 3. e3 {[%emt 0:00:00]} e6 {[%emt 0:00:51]} 4. Nf3 {[%emt 0:01:38]} Bd6 {[%emt 0:02:07]} 5. Bg3 {[%emt 0:04:32]} Bxg3 {[%emt 0:00:30]} 6. hxg3 {[%emt 0:00:06]} Nbd7 {[%emt 0:03:13]} 7. c4 {[%emt 0:02:30]} c6 {[%emt 0:04:55]} 8. Nc3 {[%emt 0:00:58]} dxc4 {[%emt 0:06:59]} 9. Bxc4 {[%emt 0:00:54]} Nb6 {[%emt 0:00:30]} 10. Bd3 {[%emt 0:02:27]} h6 {[%emt 0:04:30]} 11. Rc1 {[%emt 0:02:24]} Nbd5 {[%emt 0:00:20]} 12. Nxd5 {[%emt 0:06:03]} exd5 {[%emt 0:01:43]} 13. Qd2 {[%emt 0:02:51]} Qe7 {[%emt 0:01:52]} 14. Ne5 {[%emt 0:03:37]} Be6 {[%emt 0:04:41]} 15. f3 {[%emt 0:02:04]} Nd7 {[%emt 0:01:27]} 16. Nxd7 {[%emt 0:02:48]} Qxd7 {[%emt 0:01:16]} 17. Qb4 {[%emt 0:03:02]} Qe7 {[%emt 0:00:38]} 18. Qc5 {[%emt 0:01:10]} Qxc5 {[%emt 0:01:01]} 19. Rxc5 {[%emt 0:00:08]} Kd7 {[%emt 0:01:24]} 20. Kd2 {[%emt 0:01:22]} Kd6 {[%emt 0:04:11]} 21. Rhc1 {[%emt 0:02:57]} Rhc8 {[%emt 0:09:30]} 22. a3 h5 {[%emt 0:10:38]} 23. Rh1 {[%emt 0:07:59]} g6 {[%emt 0:01:03]} 24. Rhc1 {[%emt 0:00:57]} Bd7 {[%emt 0:08:34]} 25. Rh1 {[%emt 0:06:44]} Rh8 {[%emt 0:00:17]} 26. Rcc1 {[%emt 0:00:43]} Rhg8 {[%emt 0:06:36]} 27. Rh2 {[%emt 0:00:47]} f5 {[%emt 0:03:06]} 28. Rch1 {[%emt 0:09:06]} Rae8 {[%emt 0:00:33]} 29. b4 {[%emt 0:00:58]} a6 {[%emt 0:01:07]} 30. Rh4 {[%emt 0:01:46]} Re7 {[%emt 0:04:43]} 31. Re1 {[%emt 0:10:02]} Rgg7 {[%emt 0:05:31]} 32. Bc2 {[%emt 0:04:24]} Be8 {[%emt 0:00:10]} 33. Rh2 {[%emt 0:04:49]} Bd7 {[%emt 0:04:40]} 34. Bd1 {[%emt 0:00:27]} Be8 {[%emt 0:00:20]} 35. g4 {[%emt 0:02:23]} fxg4 {[%emt 0:00:47]} 36. fxg4 {[%emt 0:00:10]} hxg4 {[%emt 0:00:12]} 37. Bxg4 {[%emt 0:00:06]} Bd7 {[%emt 0:00:05]} 38. Bf3 {[%emt 0:02:46]} Bf5 {[%emt 0:00:12]} 39. Reh1 {[%emt 0:01:25]} Be4 {[%emt 0:01:17]} 40. Rh6 {[%emt 0:00:39]} Bf5 {[%emt 0:00:39]} 41. R1h4 {[%emt 0:03:40]} Re6 {[%emt 0:01:52]} 42. Rh7 {[%emt 0:01:37]} Ree7 {[%emt 0:00:34]} 43. Rxg7 {[%emt 0:00:47]} Rxg7 {[%emt 0:00:09]} 44. Rh6 {[%emt 0:01:28]} Ke7 {[%emt 0:00:44]} 1/2-1/2

[Event "Lilla Elite Hotels Open 2019"]
[Site "Vaxjo"]
[Date "2019.02.10"]
[Round "7.1"]
[White "Wennerlund, Elias"]
[Black "Nabbing, Oscar"]
[Result "1/2-1/2"]
[ECO "C11"]
[WhiteElo "1494"]
[BlackElo "1456"]
[Annotator "NA"]
[PlyCount "132"]
[EventDate "2019.02.08"]
[EventType "swiss"]
[EventCountry "SWE"]
[SourceTitle "playchess.com"]
[Source "ChessBase"]
[SourceQuality "1"]
[TimeControl "5400+30"]

1. e4 {[%emt 0:00:00]} e6 {[%emt 0:00:13]} 2. Nf3 {[%emt 0:00:00]} d5 {[%emt 0:00:34]} 3. Nc3 {[%emt 0:00:00]} Nf6 {[%emt 0:01:17]} 4. e5 {[%emt 0:00:00]} Nfd7 {[%emt 0:00:11]} 5. d4 {[%emt 0:00:03]} c5 {[%emt 0:00:12]} 6. dxc5 {[%emt 0:00:03]} Nxc5 {[%emt 0:02:32]} 7. Bf4 {[%emt 0:00:05]} a6 {[%emt 0:00:22]} 8. Qd2 {[%emt 0:00:06]} Nc6 {[%emt 0:00:52]} 9. O-O-O {[%emt 0:00:09]} b5 {[%emt 0:02:50]} 10. h4 {[%emt 0:04:32]} b4 {[%emt 0:07:32]} 11. Ne2 {[%emt 0:05:06]} a5 {[%emt 0:00:35]} 12. Ned4 {[%emt 0:00:31]} Nxd4 {[%emt 0:06:59]} 13. Nxd4 {[%emt 0:01:57]} Qc7 {[%emt 0:01:15]} 14. g4 {[%emt 0:12:28]} Bd7 {[%emt 0:03:20]} 15. Kb1 {[%emt 0:09:05]} Qb6 {[%emt 0:03:57]} 16. f3 {[%emt 0:04:34]} Na4 {[%emt 0:21:43]} 17. Ka1 {[%emt 0:02:39]} Rc8 {[%emt 0:06:54]} 18. Rb1 {[%emt 0:07:02]} Bc5 {[%emt 0:02:23]} 19. Be3 {[%emt 0:02:23]} Rb8 {[%emt 0:08:11]} 20. Rh2 {[%emt 0:10:40]} Qc7 {[%emt 0:02:39]} 21. Nb3 {[%emt 0:08:55]} Bb6 {[%emt 0:03:32]} 22. Bxb6 {[%emt 0:03:25]} Qxb6 {[%emt 0:00:44]} 23. Qg5 {[%emt 0:01:33]} Rg8 {[%emt 0:01:41]} 24. Bd3 {[%emt 0:00:37]} h6 {[%emt 0:00:52]} 25. Qf4 {[%emt 0:03:23]} Nc5 {[%emt 0:00:39]} 26. Nxc5 {[%emt 0:00:54]} Qxc5 {[%emt 0:00:13]} 27. g5 {[%emt 0:00:11]} hxg5 {[%emt 0:01:25]} 28. hxg5 {[%emt 0:00:49]} Qe7 {[%emt 0:01:14]} 29. Rbh1 {[%emt 0:01:44]} Bc6 {[%emt 0:02:00]} 30. Rh7 {[%emt 0:04:30]} a4 {[%emt 0:01:14]} 31. Rxg7 Rxg7 {[%emt 0:00:58]} 32. Rh8+ {[%emt 0:00:28]} Kd7 {[%emt 0:00:06]} 33. Rxb8 {[%emt 0:00:10]} Qxg5 {[%emt 0:00:38]} 34. Qxg5 {[%emt 0:00:36]} Rxg5 {[%emt 0:00:06]} 35. a3 {[%emt 0:01:37]} bxa3 {[%emt 0:00:44]} 36. f4 {[%emt 0:00:41]} axb2+ {[%emt 0:00:25]} 37. Kxb2 {[%emt 0:00:07]} Rh5 {[%emt 0:00:49]} 38. Rb4 {[%emt 0:01:08]} Rh4 {[%emt 0:01:02]} 39. Ka3 {[%emt 0:01:27]} Ke7 {[%emt 0:01:01]} 40. Rb6 {[%emt 0:00:36]} Kd7 {[%emt 0:00:41]} 41. Rb4 {[%emt 0:00:07]} Kc7 {[%emt 0:00:40]} 42. Kb2 {[%emt 0:01:12]} Kd7 {[%emt 0:01:48]} 43. Ka3 {[%emt 0:00:59]} Ke7 {[%emt 0:00:20]} 44. Rb6 {[%emt 0:00:28]} Bd7 {[%emt 0:01:57]} 45. Rb7 {[%emt 0:01:09]} Kd8 {[%emt 0:00:44]} 46. Rb8+ {[%emt 0:00:36]} Kc7 {[%emt 0:00:40]} 47. Rb4 {[%emt 0:00:06]} Rh6 {[%emt 0:00:33]} 48. Rb1 {[%emt 0:04:10]} f6 {[%emt 0:00:44]} 49. Re1 {[%emt 0:00:23]} f5 {[%emt 0:01:49]} 50. Rb1 {[%emt 0:01:56]} Rh2 {[%emt 0:00:29]} 51. Rb4 {[%emt 0:01:56]} Rf2 {[%emt 0:00:15]} 52. Kb2 {[%emt 0:01:26]} Rg2 {[%emt 0:01:21]} 53. Ka3 {[%emt 0:00:51]} Rg4 {[%emt 0:00:38]} 54. Kb2 {[%emt 0:00:11]} Rg8 {[%emt 0:00:20]} 55. Ka3 {[%emt 0:03:08]} Rb8 {[%emt 0:00:14]} 56. Rxb8 {[%emt 0:00:16]} Kxb8 {[%emt 0:00:07]} 57. c4 {[%emt 0:00:21]} dxc4 {[%emt 0:00:43]} 58. Bxc4 {[%emt 0:00:06]} Kb7 {[%emt 0:00:07]} 59. Kb4 {[%emt 0:00:21]} Kb6 {[%emt 0:00:14]} 60. Ba2 {[%emt 0:00:07]} a3 {[%emt 0:01:58]} 61. Bc4 {[%emt 0:00:37]} Bc8 {[%emt 0:01:23]} 62. Ba2 {[%emt 0:00:14]} Kc6 {[%emt 0:01:07]} 63. Bc4 {[%emt 0:00:23]} Kb6 {[%emt 0:05:32]} 64. Ba2 {[%emt 0:00:08]} Bd7 {[%emt 0:01:09]} 65. Bc4 {[%emt 0:00:12]} Kc7 {[%emt 0:01:20]} 66. Ba2 {[%emt 0:00:12]} Kb6 {[%emt 0:01:25]} 1/2-1/2

[Event "Lilla Elite Hotels Open 2019"]
[Site "Vaxjo"]
[Date "2019.02.10"]
[Round "7.2"]
[White "Petersson, David"]
[Black "Seo, Jung Hyun"]
[Result "1-0"]
[ECO "A45"]
[WhiteElo "1465"]
[BlackElo "1534"]
[Annotator "NA"]
[PlyCount "161"]
[EventDate "2019.02.08"]
[EventType "swiss"]
[EventCountry "SWE"]
[SourceTitle "playchess.com"]
[Source "ChessBase"]
[SourceQuality "1"]
[TimeControl "5400+30"]

1. d4 Nf6 {[%emt 0:00:00]} 2. Bf4 {[%emt 0:00:00]} d6 {[%emt 0:06:34]} 3. Nc3 {[%emt 0:01:44]} g6 {[%emt 0:00:09]} 4. e4 {[%emt 0:01:11]} Bg7 {[%emt 0:00:20]} 5. Qd2 {[%emt 0:01:55]} Nbd7 {[%emt 0:01:06]} 6. O-O-O {[%emt 0:01:23]} c6 {[%emt 0:01:54]} 7. Nf3 {[%emt 0:06:33]} O-O {[%emt 0:03:15]} 8. h4 {[%emt 0:07:50]} b5 {[%emt 0:02:38]} 9. e5 {[%emt 0:10:26]} b4 {[%emt 0:07:58]} 10. exf6 {[%emt 0:03:54]} bxc3 {[%emt 0:00:03]} 11. Qxc3 {[%emt 0:00:24]} Nxf6 {[%emt 0:00:26]} 12. Qxc6 {[%emt 0:01:29]} Bf5 {[%emt 0:18:16]} 13. Bd3 {[%emt 0:07:06]} Nh5 {[%emt 0:17:47]} 14. Bg5 {[%emt 0:11:02]} h6 {[%emt 0:05:50]} 15. Bxf5 {[%emt 0:03:43]} hxg5 {[%emt 0:01:52]} 16. Be4 {[%emt 0:08:37]} Rc8 {[%emt 0:01:24]} 17. Qa4 {[%emt 0:01:00]} g4 {[%emt 0:00:26]} 18. Ng5 {[%emt 0:03:33]} d5 {[%emt 0:06:06]} 19. Bd3 {[%emt 0:09:20]} Qb6 {[%emt 0:01:16]} 20. f3 {[%emt 0:02:48]} Bxd4 {[%emt 0:01:04]} 21. Qb3 {[%emt 0:02:39]} Be3+ {[%emt 0:04:54]} 22. Kb1 {[%emt 0:00:13]} Bxg5 {[%emt 0:00:14]} 23. Qxb6 {[%emt 0:00:46]} axb6 {[%emt 0:00:13]} 24. hxg5 {[%emt 0:00:13]} g3 {[%emt 0:00:27]} 25. Rh4 {[%emt 0:03:01]} e5 {[%emt 0:01:38]} 26. Re1 {[%emt 0:02:24]} Rfe8 {[%emt 0:00:27]} 27. Bb5 {[%emt 0:00:34]} Re7 {[%emt 0:00:26]} 28. f4 {[%emt 0:00:38]} e4 {[%emt 0:01:10]} 29. f5 {[%emt 0:00:53]} Rec7 {[%emt 0:01:22]} 30. Ba4 {[%emt 0:01:05]} Ra8 {[%emt 0:02:06]} 31. Bb3 {[%emt 0:00:20]} Ra5 {[%emt 0:00:34]} 32. fxg6 {[%emt 0:00:15]} fxg6 {[%emt 0:00:13]} 33. Rhxe4 {[%emt 0:00:09]} Rb5 {[%emt 0:01:31]} 34. Rg4 {[%emt 0:01:37]} Rf7 {[%emt 0:02:25]} 35. c4 {[%emt 0:01:20]} Rc5 {[%emt 0:01:50]} 36. cxd5 {[%emt 0:00:22]} Rd7 {[%emt 0:01:19]} 37. Rc1 {[%emt 0:01:10]} Rxc1+ {[%emt 0:00:16]} 38. Kxc1 {[%emt 0:00:01]} Kf7 {[%emt 0:00:07]} 39. Re4 {[%emt 0:00:36]} Rd6 {[%emt 0:00:16]} 40. Kd2 {[%emt 0:00:36]} Ng7 {[%emt 0:00:23]} 41. Ke3 {[%emt 0:00:46]} Nf5+ {[%emt 0:00:03]} 42. Kf3 {[%emt 0:00:30]} Kf8 {[%emt 0:02:39]} 43. Re6 {[%emt 0:00:22]} Rxe6 {[%emt 0:00:05]} 44. dxe6 {[%emt 0:00:18]} Nd4+ {[%emt 0:00:25]} 45. Ke4 {[%emt 0:00:37]} Nf5 {[%emt 0:00:14]} 46. Ke5 {[%emt 0:01:13]} Ke7 {[%emt 0:00:14]} 47. a4 {[%emt 0:00:27]} Ne3 {[%emt 0:00:44]} 48. Bd5 {[%emt 0:00:31]} Nc2 {[%emt 0:00:53]} 49. Be4 {[%emt 0:00:52]} Ne3 {[%emt 0:00:15]} 50. b3 {[%emt 0:00:21]} Ng4+ {[%emt 0:00:30]} 51. Kf4 {[%emt 0:00:56]} Nf2 {[%emt 0:00:04]} 52. Bxg6 {[%emt 0:00:42]} Kxe6 {[%emt 0:00:09]} 53. Kxg3 {[%emt 0:00:20]} Nd1 {[%emt 0:00:10]} 54. Kf4 {[%emt 0:00:29]} Nf2 {[%emt 0:00:50]} 55. Bf5+ {[%emt 0:00:17]} Kf7 {[%emt 0:00:04]} 56. Ke5 {[%emt 0:00:16]} Nd1 {[%emt 0:00:15]} 57. g6+ {[%emt 0:00:40]} Kg7 {[%emt 0:00:03]} 58. Kd6 {[%emt 0:00:36]} Kf6 {[%emt 0:00:32]} 59. Bd3 {[%emt 0:00:29]} Nf2 {[%emt 0:00:22]} 60. Bc2 {[%emt 0:00:20]} Ng4 {[%emt 0:00:33]} 61. Kc6 {[%emt 0:00:40]} Ne3 {[%emt 0:00:11]} 62. Be4 {[%emt 0:00:25]} Ke6 {[%emt 0:00:12]} 63. Kxb6 {[%emt 0:00:21]} Ng4 {[%emt 0:00:04]} 64. a5 {[%emt 0:00:18]} Ne5 {[%emt 0:00:06]} 65. a6 {[%emt 0:00:16]} Nd7+ {[%emt 0:00:04]} 66. Kc7 {[%emt 0:00:27]} Nc5 {[%emt 0:00:03]} 67. a7 {[%emt 0:00:28]} Na6+ {[%emt 0:00:03]} 68. Kb6 {[%emt 0:00:16]} Nb4 {[%emt 0:00:05]} 69. a8=Q {[%emt 0:00:15]} Ke5 {[%emt 0:00:06]} 70. Qa5+ {[%emt 0:00:22]} Ke6 {[%emt 0:00:04]} 71. Qxb4 {[%emt 0:00:25]} Ke5 {[%emt 0:00:05]} 72. Qb5+ {[%emt 0:00:30]} Kd6 {[%emt 0:00:04]} 73. Qc6+ {[%emt 0:00:30]} Ke5 {[%emt 0:00:03]} 74. Qd7 {[%emt 0:00:37]} Kf4 {[%emt 0:00:05]} 75. Bb1 {[%emt 0:00:35]} Kg3 {[%emt 0:00:05]} 76. Qf7 {[%emt 0:00:32]} Kh2 {[%emt 0:00:03]} 77. Kc5 {[%emt 0:00:34]} Kh1 {[%emt 0:00:07]} 78. Kd4 {[%emt 0:00:15]} Kh2 {[%emt 0:00:04]} 79. Ke3 {[%emt 0:00:24]} Kg3 {[%emt 0:00:05]} 80. Qf4+ {[%emt 0:00:45]} Kxg2 {[%emt 0:00:03]} 81. Be4+ 1-0